[Event "Live Chess"]
[Site "Chess.com"]
[Date "2023.05.20"]
[Round "-"]
[White "McSlash1"]
[Black "LutherSullivan"]
[Result "1-0"]
[WhiteElo "2049"]
[BlackElo "2042"]
[TimeControl "300"]
[EndTime "14:36:29 PDT"]
[Termination "McSlash1 won by resignation"]

1. e4 {[%clk 0:04:59.6]} 1... b6 {[%clk 0:04:58.4]} 2. d4 {[%clk 0:04:58.5]}
2... Bb7 {[%clk 0:04:58.1]} 3. Bd3 {[%clk 0:04:58.1]} 3... e6 {[%clk 0:04:55.5]}
4. Qe2 {[%clk 0:04:57.6]} 4... c5 {[%clk 0:04:46.2]} 5. c3 {[%clk 0:04:56.4]}
5... Nc6 {[%clk 0:04:44.3]} 6. d5 {[%clk 0:04:52.6]} 6... Ne5 {[%clk 0:04:42.7]}
7. Bc2 {[%clk 0:04:50.7]} 7... d6 {[%clk 0:04:08.7]} 8. f4 {[%clk 0:04:48.7]}
8... Ng6 {[%clk 0:03:42]} 9. dxe6 {[%clk 0:04:46.9]} 9... fxe6 {[%clk
0:03:02.2]} 10. Nf3 {[%clk 0:04:41.9]} 10... Nf6 {[%clk 0:02:53.1]} 11. f5
{[%clk 0:04:38.4]} 11... Ne5 {[%clk 0:02:12.2]} 12. O-O {[%clk 0:04:30.8]} 12...
Be7 {[%clk 0:02:01]} 13. Nxe5 {[%clk 0:04:28.4]} 13... dxe5 {[%clk 0:01:58.6]}
14. fxe6 {[%clk 0:04:27.2]} 14... O-O {[%clk 0:01:57.1]} 15. Nd2 {[%clk
0:04:18.1]} 15... Kh8 {[%clk 0:01:55.6]} 16. Nf3 {[%clk 0:04:16.9]} 16... Qd6
{[%clk 0:01:47.2]} 17. Rd1 {[%clk 0:04:14]} 17... Qxe6 {[%clk 0:01:41.4]} 18.
Ng5 {[%clk 0:04:08.1]} 18... Qg4 {[%clk 0:01:26.8]} 19. Qxg4 {[%clk 0:04:04.6]}
19... Nxg4 {[%clk 0:01:26.7]} 20. Rd7 {[%clk 0:04:01.6]} 20... Bxg5 {[%clk
0:01:20.7]} 21. Bxg5 {[%clk 0:04:01.5]} 21... Ba6 {[%clk 0:01:08.5]} 22. h3
{[%clk 0:03:58.7]} 22... Nf6 {[%clk 0:01:03.3]} 23. Bxf6 {[%clk 0:03:57.1]}
23... Rxf6 {[%clk 0:01:02]} 24. Rad1 {[%clk 0:03:55.7]} 24... h6 {[%clk
0:00:56.4]} 25. Rc7 {[%clk 0:03:52.7]} 25... Raf8 {[%clk 0:00:50.7]} 26. Rdd7
{[%clk 0:03:51.8]} 26... Rg6 {[%clk 0:00:44.5]} 27. Bd1 {[%clk 0:03:44.8]} 27...
Bb5 {[%clk 0:00:23.4]} 28. Rd2 {[%clk 0:03:39.4]} 28... Rf1+ {[%clk 0:00:17.5]}
29. Kh2 {[%clk 0:03:38.3]} 29... Re1 {[%clk 0:00:14.6]} 30. Bf3 {[%clk
0:03:36.5]} 30... Rf6 {[%clk 0:00:12.9]} 31. Rxa7 {[%clk 0:03:33]} 31... Rf1
{[%clk 0:00:08.6]} 32. Rb7 {[%clk 0:03:29.6]} 32... Bc6 {[%clk 0:00:07.1]} 33.
Rxb6 {[%clk 0:03:27.5]} 33... Bxe4 {[%clk 0:00:06.2]} 34. Rxf6 {[%clk
0:03:26.6]} 1-0

[Event "Live Chess"]
[Site "Chess.com"]
[Date "2023.05.20"]
[Round "-"]
[White "wadsy27"]
[Black "LL220284LL"]
[Result "1-0"]
[WhiteElo "2560"]
[BlackElo "2373"]
[TimeControl "300"]
[EndTime "14:36:42 PDT"]
[Termination "wadsy27 won by resignation"]

1. c4 {[%clk 0:04:57.2]} 1... e6 {[%clk 0:04:57.9]} 2. g3 {[%clk 0:04:55.9]}
2... d5 {[%clk 0:04:56.7]} 3. Bg2 {[%clk 0:04:55.6]} 3... dxc4 {[%clk 0:04:56]}
4. Qa4+ {[%clk 0:04:52.8]} 4... Nd7 {[%clk 0:04:54.2]} 5. Qxc4 {[%clk
0:04:51.9]} 5... c5 {[%clk 0:04:53.8]} 6. Nf3 {[%clk 0:04:48]} 6... a6 {[%clk
0:04:52.9]} 7. Qb3 {[%clk 0:04:42.7]} 7... Ngf6 {[%clk 0:04:42.8]} 8. d3 {[%clk
0:04:41.1]} 8... Bd6 {[%clk 0:04:31.9]} 9. a4 {[%clk 0:04:39.2]} 9... Rb8 {[%clk
0:04:20.3]} 10. a5 {[%clk 0:04:35.4]} 10... O-O {[%clk 0:04:18.8]} 11. Nbd2
{[%clk 0:04:31.5]} 11... b5 {[%clk 0:04:08.9]} 12. axb6 {[%clk 0:04:30.1]} 12...
Nxb6 {[%clk 0:04:07.4]} 13. Nc4 {[%clk 0:04:21.5]} 13... Nxc4 {[%clk 0:03:38.9]}
14. Qxc4 {[%clk 0:04:19.5]} 14... Bb7 {[%clk 0:03:36.6]} 15. O-O {[%clk
0:04:15.5]} 15... Qb6 {[%clk 0:03:35.3]} 16. Qc2 {[%clk 0:03:58.2]} 16... Rfc8
{[%clk 0:03:29.1]} 17. b3 {[%clk 0:03:30.4]} 17... Bd5 {[%clk 0:03:24.2]} 18.
Nd2 {[%clk 0:03:29.4]} 18... Be5 {[%clk 0:03:11]} 19. Ra4 {[%clk 0:03:24.7]}
19... Rc6 {[%clk 0:02:48.2]} 20. Nc4 {[%clk 0:03:19.6]} 20... Bxc4 {[%clk
0:02:44.9]} 21. bxc4 {[%clk 0:03:18.1]} 21... Rc7 {[%clk 0:02:41.4]} 22. Qa2
{[%clk 0:03:06.3]} 22... Ra7 {[%clk 0:02:36.5]} 23. Bd2 {[%clk 0:02:56]} 23...
Qb2 {[%clk 0:02:34.6]} 24. Be3 {[%clk 0:02:52]} 24... Bd4 {[%clk 0:02:30.4]} 25.
Bxd4 {[%clk 0:02:43.9]} 25... cxd4 {[%clk 0:02:26.8]} 26. Ra1 {[%clk 0:02:42.7]}
26... h6 {[%clk 0:02:16.6]} 27. Bf3 {[%clk 0:02:38.4]} 27... Qxa2 {[%clk
0:02:07]} 28. R4xa2 {[%clk 0:02:36.1]} 28... Rb6 {[%clk 0:02:06.5]} 29. Ra5
{[%clk 0:02:22.7]} 29... Nd7 {[%clk 0:02:01.4]} 30. c5 {[%clk 0:02:21.5]} 30...
Rb2 {[%clk 0:02:00.3]} 31. c6 {[%clk 0:02:16]} 31... Nb8 {[%clk 0:01:50.4]} 32.
Rc5 {[%clk 0:01:52.3]} 32... Rc7 {[%clk 0:01:46.9]} 33. Ra4 {[%clk 0:01:51.1]}
33... Kf8 {[%clk 0:01:14.2]} 34. Rxd4 {[%clk 0:01:49]} 34... Ke7 {[%clk
0:01:13.3]} 35. h4 {[%clk 0:01:42.3]} 35... f6 {[%clk 0:01:06.7]} 36. h5 {[%clk
0:01:37.9]} 36... e5 {[%clk 0:01:04.5]} 37. Rg4 {[%clk 0:01:34.8]} 37... Kf8
{[%clk 0:01:02.3]} 38. d4 {[%clk 0:01:26.2]} 38... exd4 {[%clk 0:01:00]} 39.
Rxd4 {[%clk 0:01:24.6]} 39... Ke7 {[%clk 0:00:59]} 40. Rc3 {[%clk 0:01:19.5]}
40... Rb5 {[%clk 0:00:53]} 41. Bd5 {[%clk 0:01:15.3]} 41... Nd7 {[%clk 0:00:34]}
42. Re3+ {[%clk 0:01:11.2]} 42... Ne5 {[%clk 0:00:29.2]} 43. f4 {[%clk
0:01:10.1]} 43... Kd6 {[%clk 0:00:24.2]} 44. Bg2+ {[%clk 0:00:53]} 44... Kc5
{[%clk 0:00:18.7]} 45. Rd5+ {[%clk 0:00:52.2]} 45... Kxc6 {[%clk 0:00:14]} 46.
Rdxe5+ {[%clk 0:00:50.6]} 1-0

[Event "Live Chess"]
[Site "Chess.com"]
[Date "2023.05.20"]
[Round "-"]
[White "MarkLim1"]
[Black "Missedidea"]
[Result "1-0"]
[WhiteElo "1670"]
[BlackElo "1713"]
[TimeControl "300"]
[EndTime "14:36:44 PDT"]
[Termination "MarkLim1 won on time"]

1. d4 {[%clk 0:04:59]} 1... Nf6 {[%clk 0:04:58]} 2. Nf3 {[%clk 0:04:58]} 2... g6
{[%clk 0:04:56.5]} 3. c4 {[%clk 0:04:57.1]} 3... Bg7 {[%clk 0:04:55.5]} 4. Nc3
{[%clk 0:04:56.5]} 4... O-O {[%clk 0:04:54.2]} 5. e4 {[%clk 0:04:55.9]} 5... d6
{[%clk 0:04:52.9]} 6. Be2 {[%clk 0:04:55.3]} 6... e5 {[%clk 0:04:45.1]} 7. d5
{[%clk 0:04:51.5]} 7... a5 {[%clk 0:04:43.2]} 8. O-O {[%clk 0:04:50.5]} 8... Na6
{[%clk 0:04:42.3]} 9. Bg5 {[%clk 0:04:49.5]} 9... h6 {[%clk 0:04:40.1]} 10. Bh4
{[%clk 0:04:48.7]} 10... g5 {[%clk 0:04:38.8]} 11. Bg3 {[%clk 0:04:47.8]} 11...
Nh5 {[%clk 0:04:32.4]} 12. a3 {[%clk 0:04:32]} 12... Nf4 {[%clk 0:04:23.1]} 13.
Rb1 {[%clk 0:04:30.1]} 13... Bd7 {[%clk 0:03:41.6]} 14. b4 {[%clk 0:04:26.7]}
14... b6 {[%clk 0:03:32.3]} 15. Ne1 {[%clk 0:04:23.5]} 15... f5 {[%clk
0:03:15.8]} 16. exf5 {[%clk 0:04:16.1]} 16... Bxf5 {[%clk 0:03:13.6]} 17. Bg4
{[%clk 0:04:00.6]} 17... Bxb1 {[%clk 0:02:52.3]} 18. Qxb1 {[%clk 0:03:59.1]}
18... h5 {[%clk 0:02:37.4]} 19. Be6+ {[%clk 0:03:55.6]} 19... Kh8 {[%clk
0:02:35.3]} 20. f3 {[%clk 0:03:54.2]} 20... axb4 {[%clk 0:02:25.2]} 21. axb4
{[%clk 0:03:51.8]} 21... e4 {[%clk 0:02:14.2]} 22. Nxe4 {[%clk 0:03:43.7]} 22...
Bd4+ {[%clk 0:02:04.8]} 23. Kh1 {[%clk 0:03:38.9]} 23... h4 {[%clk 0:01:51.7]}
24. Bxf4 {[%clk 0:03:35.7]} 24... Rxf4 {[%clk 0:01:46.3]} 25. Nd3 {[%clk
0:03:29]} 25... Rf8 {[%clk 0:01:21.3]} 26. Rd1 {[%clk 0:03:24.8]} 26... Be3
{[%clk 0:01:13.2]} 27. Qb2+ {[%clk 0:03:06]} 27... Kh7 {[%clk 0:01:09.7]} 28.
Re1 {[%clk 0:02:51.9]} 28... Bf4 {[%clk 0:01:01.1]} 29. c5 {[%clk 0:02:43.7]}
29... bxc5 {[%clk 0:00:57.1]} 30. bxc5 {[%clk 0:02:42.1]} 30... Rb8 {[%clk
0:00:47.9]} 31. Qd4 {[%clk 0:02:25.7]} 31... Rb3 {[%clk 0:00:25.1]} 32. Nxf4
{[%clk 0:02:16.4]} 32... Rxf4 {[%clk 0:00:22.1]} 33. Qc4 {[%clk 0:01:54.9]}
33... Nxc5 {[%clk 0:00:18.3]} 34. Qc2 {[%clk 0:01:42.5]} 34... Kh6 {[%clk
0:00:13.2]} 35. Nxc5 {[%clk 0:01:39.7]} 1-0

[Event "Live Chess"]
[Site "Chess.com"]
[Date "2023.05.20"]
[Round "-"]
[White "YF22Raptor"]
[Black "f4nomore"]
[Result "0-1"]
[WhiteElo "1015"]
[BlackElo "1399"]
[TimeControl "300"]
[EndTime "14:36:45 PDT"]
[Termination "f4nomore won by checkmate"]

1. e4 {[%clk 0:04:56.6]} 1... g6 {[%clk 0:04:59.9]} 2. Nf3 {[%clk 0:04:55.2]}
2... Bg7 {[%clk 0:04:58.1]} 3. d4 {[%clk 0:04:53.9]} 3... d6 {[%clk 0:04:56.9]}
4. Nc3 {[%clk 0:04:52.2]} 4... Nd7 {[%clk 0:04:55.1]} 5. Be3 {[%clk 0:04:47.2]}
5... a6 {[%clk 0:04:53.7]} 6. Bd3 {[%clk 0:04:44.4]} 6... Ngf6 {[%clk
0:04:52.2]} 7. e5 {[%clk 0:04:41.8]} 7... dxe5 {[%clk 0:04:47.9]} 8. dxe5 {[%clk
0:04:40.2]} 8... Ng4 {[%clk 0:04:46.7]} 9. Bd4 {[%clk 0:04:25.4]} 9... Ngxe5
{[%clk 0:04:43.9]} 10. Nxe5 {[%clk 0:04:11.9]} 10... Nxe5 {[%clk 0:04:39]} 11.
Bxe5 {[%clk 0:04:01.4]} 11... Bxe5 {[%clk 0:04:35.9]} 12. Qe2 {[%clk 0:03:58.3]}
12... Bg7 {[%clk 0:04:30.7]} 13. O-O {[%clk 0:03:56.6]} 13... O-O {[%clk
0:04:28.4]} 14. Qd2 {[%clk 0:03:52.2]} 14... e6 {[%clk 0:04:25.9]} 15. b3 {[%clk
0:03:50]} 15... Qf6 {[%clk 0:04:22.6]} 16. Ne4 {[%clk 0:03:45.2]} 16... Qe5
{[%clk 0:04:11.8]} 17. Rfe1 {[%clk 0:03:37.1]} 17... Bd7 {[%clk 0:04:00.1]} 18.
Ng5 {[%clk 0:03:09.2]} 18... Qf6 {[%clk 0:03:47.6]} 19. Ne4 {[%clk 0:03:05.1]}
19... Qe5 {[%clk 0:03:39.3]} 20. Ng5 {[%clk 0:03:03.5]} 20... Qc3 {[%clk
0:03:33.7]} 21. Nf3 {[%clk 0:02:56.9]} 21... Qxd2 {[%clk 0:03:31.6]} 22. Nxd2
{[%clk 0:02:55.8]} 22... Bc6 {[%clk 0:03:30.2]} 23. Rac1 {[%clk 0:02:49.3]}
23... Rad8 {[%clk 0:03:23.1]} 24. Nc4 {[%clk 0:02:41.6]} 24... b5 {[%clk
0:03:19.4]} 25. Na5 {[%clk 0:02:38.6]} 25... Ba8 {[%clk 0:03:16.6]} 26. a4
{[%clk 0:02:28.4]} 26... Bc3 {[%clk 0:03:14]} 27. axb5 {[%clk 0:02:18.5]} 27...
Bxa5 {[%clk 0:03:09.2]} 28. Re2 {[%clk 0:02:12.1]} 28... axb5 {[%clk 0:03:04.5]}
29. Bxb5 {[%clk 0:02:10.4]} 29... c6 {[%clk 0:02:59.4]} 30. Bc4 {[%clk
0:02:08.1]} 30... Bc3 {[%clk 0:02:43.9]} 31. Re3 {[%clk 0:02:04]} 31... Bd4
{[%clk 0:02:39.9]} 32. Re2 {[%clk 0:02:00]} 32... c5 {[%clk 0:02:37.9]} 33. c3
{[%clk 0:01:58]} 33... Bg7 {[%clk 0:02:34.6]} 34. h3 {[%clk 0:01:49.2]} 34...
Bh6 {[%clk 0:02:30.5]} 35. Rcc2 {[%clk 0:01:44.3]} 35... Rd1+ {[%clk 0:02:24.6]}
36. Kh2 {[%clk 0:01:42.6]} 36... Bf4+ {[%clk 0:02:15.3]} 37. g3 {[%clk
0:01:41.2]} 37... Bh6 {[%clk 0:02:12.2]} 38. Re5 {[%clk 0:01:31.5]} 38... Rh1#
{[%clk 0:02:03.8]} 0-1

[Event "Live Chess"]
[Site "Chess.com"]
[Date "2023.05.20"]
[Round "-"]
[White "Delacorta"]
[Black "Mikhail_Golubev"]
[Result "0-1"]
[WhiteElo "1415"]
[BlackElo "2518"]
[TimeControl "300"]
[EndTime "14:37:01 PDT"]
[Termination "Mikhail_Golubev won by resignation"]

1. d4 {[%clk 0:04:57.6]} 1... Na6 {[%clk 0:04:58.7]} 2. Nf3 {[%clk 0:04:56.1]}
2... c6 {[%clk 0:04:57.9]} 3. e3 {[%clk 0:04:52.6]} 3... Nc7 {[%clk 0:04:56]} 4.
Bd3 {[%clk 0:04:50.6]} 4... d5 {[%clk 0:04:54.5]} 5. O-O {[%clk 0:04:48.9]} 5...
g6 {[%clk 0:04:53.7]} 6. b3 {[%clk 0:04:45.7]} 6... Bg7 {[%clk 0:04:52.5]} 7.
Bb2 {[%clk 0:04:44.6]} 7... Nf6 {[%clk 0:04:51]} 8. Nbd2 {[%clk 0:04:43.4]} 8...
O-O {[%clk 0:04:49.9]} 9. Rc1 {[%clk 0:04:39.3]} 9... Bf5 {[%clk 0:04:46.6]} 10.
Bxf5 {[%clk 0:04:37.3]} 10... gxf5 {[%clk 0:04:46.5]} 11. c4 {[%clk 0:04:35.8]}
11... e6 {[%clk 0:04:42.3]} 12. cxd5 {[%clk 0:04:34.3]} 12... Ncxd5 {[%clk
0:04:39.7]} 13. a3 {[%clk 0:04:28.6]} 13... Ne4 {[%clk 0:04:31.7]} 14. Nxe4
{[%clk 0:04:24.4]} 14... fxe4 {[%clk 0:04:31.6]} 15. Ng5 {[%clk 0:04:08]} 15...
Qxg5 {[%clk 0:04:29.3]} 0-1

[Event "Live Chess"]
[Site "Chess.com"]
[Date "2023.05.20"]
[Round "-"]
[White "MrBlond89"]
[Black "OSmith06"]
[Result "0-1"]
[WhiteElo "1396"]
[BlackElo "1674"]
[TimeControl "300"]
[EndTime "14:37:37 PDT"]
[Termination "OSmith06 won on time"]

1. e4 {[%clk 0:04:58]} 1... c6 {[%clk 0:04:57.6]} 2. Nf3 {[%clk 0:04:53.3]} 2...
d5 {[%clk 0:04:57.5]} 3. d3 {[%clk 0:04:49.9]} 3... dxe4 {[%clk 0:04:54.6]} 4.
Ng5 {[%clk 0:04:48.9]} 4... exd3 {[%clk 0:04:48.4]} 5. Bxd3 {[%clk 0:04:47.7]}
5... Nd7 {[%clk 0:04:47]} 6. Be3 {[%clk 0:04:40.8]} 6... h6 {[%clk 0:04:43.1]}
7. Nf3 {[%clk 0:04:39.5]} 7... Ngf6 {[%clk 0:04:40.5]} 8. O-O {[%clk 0:04:37]}
8... e6 {[%clk 0:04:37.1]} 9. h3 {[%clk 0:04:36]} 9... Bd6 {[%clk 0:04:35.4]}
10. Nc3 {[%clk 0:04:30.9]} 10... Ne5 {[%clk 0:04:30.5]} 11. Nxe5 {[%clk
0:04:08.4]} 11... Bxe5 {[%clk 0:04:30.4]} 12. Qe2 {[%clk 0:04:07.5]} 12... Bxc3
{[%clk 0:04:12.5]} 13. bxc3 {[%clk 0:04:03.1]} 13... Nd5 {[%clk 0:04:11.8]} 14.
Bd4 {[%clk 0:03:58.5]} 14... O-O {[%clk 0:04:07.9]} 15. Qg4 {[%clk 0:03:52]}
15... e5 {[%clk 0:04:02.5]} 16. Bh7+ {[%clk 0:03:40.7]} 16... Kxh7 {[%clk
0:03:53.5]} 17. Qe4+ {[%clk 0:03:39.5]} 17... f5 {[%clk 0:03:47.6]} 18. Qxe5
{[%clk 0:03:37.9]} 18... Qe7 {[%clk 0:03:34.7]} 19. Qg3 {[%clk 0:03:22]} 19...
f4 {[%clk 0:03:28.6]} 20. Qd3+ {[%clk 0:03:19]} 20... Bf5 {[%clk 0:03:25]} 21.
Qd2 {[%clk 0:03:12]} 21... a6 {[%clk 0:03:08.1]} 22. Rfe1 {[%clk 0:03:05.5]}
22... Qd7 {[%clk 0:02:54.6]} 23. c4 {[%clk 0:02:41.8]} 23... Nf6 {[%clk
0:02:44.3]} 24. Qxf4 {[%clk 0:02:33.6]} 24... g5 {[%clk 0:02:21.1]} 25. Qe5
{[%clk 0:02:26.4]} 25... Rae8 {[%clk 0:02:12.4]} 26. Qc5 {[%clk 0:01:55.3]}
26... Rxe1+ {[%clk 0:01:59.2]} 27. Rxe1 {[%clk 0:01:55.2]} 27... Re8 {[%clk
0:01:52.3]} 28. Rxe8 {[%clk 0:01:51.3]} 28... Nxe8 {[%clk 0:01:52.2]} 29. g4
{[%clk 0:01:32.5]} 29... Bxc2 {[%clk 0:01:45.9]} 30. Qe5 {[%clk 0:01:30.3]}
30... Qg7 {[%clk 0:01:32.4]} 31. Qxe8 {[%clk 0:01:17.9]} 31... Qxd4 {[%clk
0:01:29.5]} 32. Qf7+ {[%clk 0:01:07.4]} 32... Qg7 {[%clk 0:01:27.9]} 33. Qf3
{[%clk 0:00:58.1]} 33... Kg6 {[%clk 0:01:17.2]} 34. c5 {[%clk 0:00:48.1]} 34...
Qf6 {[%clk 0:01:14.6]} 35. Qe2 {[%clk 0:00:38.5]} 35... Bb1 {[%clk 0:00:57.7]}
36. a3 {[%clk 0:00:30.4]} 36... Kg7 {[%clk 0:00:46.9]} 37. Qd1 {[%clk
0:00:21.6]} 37... Bg6 {[%clk 0:00:42.2]} 38. Qd7+ {[%clk 0:00:20.2]} 38... Qf7
{[%clk 0:00:41.2]} 39. Qd4+ {[%clk 0:00:18.6]} 39... Kh7 {[%clk 0:00:40.4]} 40.
Kg2 {[%clk 0:00:12.5]} 40... Qd5+ {[%clk 0:00:38.7]} 41. Qxd5 {[%clk 0:00:10.8]}
41... cxd5 {[%clk 0:00:38.6]} 42. f3 {[%clk 0:00:10]} 42... d4 {[%clk
0:00:37.3]} 43. Kf2 {[%clk 0:00:09.4]} 43... d3 {[%clk 0:00:35.9]} 44. Ke1
{[%clk 0:00:08]} 44... h5 {[%clk 0:00:34.7]} 45. Kd2 {[%clk 0:00:04.9]} 45...
hxg4 {[%clk 0:00:32.7]} 46. hxg4 {[%clk 0:00:03.6]} 46... Kg7 {[%clk 0:00:32.1]}
47. a4 {[%clk 0:00:02.4]} 47... Kf6 {[%clk 0:00:31.1]} 0-1

[Event "Live Chess"]
[Site "Chess.com"]
[Date "2023.05.20"]
[Round "-"]
[White "elvenstar"]
[Black "manthanit"]
[Result "1-0"]
[WhiteElo "1566"]
[BlackElo "1005"]
[TimeControl "300"]
[EndTime "14:37:42 PDT"]
[Termination "elvenstar won on time"]

1. e4 {[%clk 0:04:58.6]} 1... e6 {[%clk 0:04:59.1]} 2. f4 {[%clk 0:04:56.9]}
2... d5 {[%clk 0:04:58.6]} 3. exd5 {[%clk 0:04:55.2]} 3... exd5 {[%clk
0:04:57.9]} 4. d4 {[%clk 0:04:51.9]} 4... Nh6 {[%clk 0:04:56.1]} 5. Nf3 {[%clk
0:04:50.6]} 5... Bd6 {[%clk 0:04:54.4]} 6. Bd3 {[%clk 0:04:49.2]} 6... Nd7
{[%clk 0:04:49.9]} 7. O-O {[%clk 0:04:47.7]} 7... O-O {[%clk 0:04:46.2]} 8. c3
{[%clk 0:04:46.6]} 8... c5 {[%clk 0:04:45.3]} 9. Be3 {[%clk 0:04:42.9]} 9... b6
{[%clk 0:04:43.2]} 10. Nbd2 {[%clk 0:04:40.2]} 10... cxd4 {[%clk 0:04:38]} 11.
Bxd4 {[%clk 0:04:38.4]} 11... Bc5 {[%clk 0:04:35.7]} 12. Bxc5 {[%clk 0:04:34]}
12... Nxc5 {[%clk 0:04:34.8]} 13. Bc2 {[%clk 0:04:31.4]} 13... Bb7 {[%clk
0:04:28.2]} 14. Nd4 {[%clk 0:04:27.4]} 14... Re8 {[%clk 0:04:22.6]} 15. N2f3
{[%clk 0:04:25]} 15... Ne4 {[%clk 0:04:09.2]} 16. Qd3 {[%clk 0:04:18.9]} 16...
a5 {[%clk 0:04:05.2]} 17. Ne5 {[%clk 0:04:14.3]} 17... Ba6 {[%clk 0:04:03.7]}
18. Nb5 {[%clk 0:03:50.8]} 18... Bxb5 {[%clk 0:02:34.7]} 19. Qxb5 {[%clk
0:03:47.8]} 19... f6 {[%clk 0:01:47.3]} 20. Nc6 {[%clk 0:03:36.3]} 20... Qd7
{[%clk 0:01:27.9]} 21. Ba4 {[%clk 0:03:21.5]} 21... Ng4 {[%clk 0:00:54.6]} 22.
Rad1 {[%clk 0:03:13.7]} 22... Ne3 {[%clk 0:00:47.1]} 23. Rxd5 {[%clk 0:02:50.5]}
23... Qxd5 {[%clk 0:00:38.8]} 24. Bb3 {[%clk 0:02:46.6]} 24... Kh8 {[%clk
0:00:12.9]} 25. Bxd5 {[%clk 0:02:44.3]} 25... Nxd5 {[%clk 0:00:12.5]} 26. Qxd5
{[%clk 0:02:42.4]} 26... Rac8 {[%clk 0:00:05.7]} 27. Nd4 {[%clk 0:02:37]} 27...
Nd2 {[%clk 0:00:03]} 28. Rd1 {[%clk 0:02:30.6]} 1-0

[Event "Live Chess"]
[Site "Chess.com"]
[Date "2023.05.20"]
[Round "-"]
[White "BearFromUkraine"]
[Black "LiamClery2020"]
[Result "0-1"]
[WhiteElo "1092"]
[BlackElo "2071"]
[TimeControl "300"]
[EndTime "14:37:46 PDT"]
[Termination "LiamClery2020 won on time"]

1. e4 {[%clk 0:04:57.2]} 1... Nf6 {[%clk 0:04:58.5]} 2. e5 {[%clk 0:04:55]} 2...
Nd5 {[%clk 0:04:57.5]} 3. Nf3 {[%clk 0:04:53.6]} 3... d6 {[%clk 0:04:55.5]} 4.
exd6 {[%clk 0:04:51.4]} 4... cxd6 {[%clk 0:04:54.7]} 5. Bc4 {[%clk 0:04:50.4]}
5... Nb6 {[%clk 0:04:53.8]} 6. Bb3 {[%clk 0:04:49]} 6... g6 {[%clk 0:04:51.4]}
7. O-O {[%clk 0:04:46.8]} 7... Bg7 {[%clk 0:04:50.7]} 8. Nc3 {[%clk 0:04:44.9]}
8... O-O {[%clk 0:04:49.5]} 9. d3 {[%clk 0:04:42.3]} 9... Nc6 {[%clk 0:04:48.9]}
10. Re1 {[%clk 0:04:39.2]} 10... Bg4 {[%clk 0:04:48.3]} 11. h3 {[%clk
0:04:37.2]} 11... Bxf3 {[%clk 0:04:44.1]} 12. Qxf3 {[%clk 0:04:37.1]} 12... e5
{[%clk 0:04:43.5]} 13. Bd2 {[%clk 0:04:29.9]} 13... Nd4 {[%clk 0:04:42.6]} 14.
Qg3 {[%clk 0:04:17.7]} 14... a5 {[%clk 0:04:38.1]} 15. a4 {[%clk 0:04:14.5]}
15... Nxb3 {[%clk 0:04:34.6]} 16. cxb3 {[%clk 0:04:12.3]} 16... Qd7 {[%clk
0:04:32.2]} 17. Be3 {[%clk 0:04:00.9]} 17... Ra6 {[%clk 0:04:20.4]} 18. d4
{[%clk 0:03:38.9]} 18... f5 {[%clk 0:04:14.6]} 19. dxe5 {[%clk 0:03:16.9]} 19...
dxe5 {[%clk 0:04:12.6]} 20. Bxb6 {[%clk 0:03:07.7]} 20... Rxb6 {[%clk
0:04:10.5]} 21. Ne2 {[%clk 0:03:03.6]} 21... f4 {[%clk 0:04:04.2]} 22. Qf3
{[%clk 0:02:52.7]} 22... Qe6 {[%clk 0:04:00.8]} 23. Nd4 {[%clk 0:02:43.8]} 23...
Qf7 {[%clk 0:03:52.2]} 24. Nb5 {[%clk 0:02:32.2]} 24... Rc8 {[%clk 0:03:37]} 25.
Rad1 {[%clk 0:02:17]} 25... Bf8 {[%clk 0:03:31.2]} 26. Rxe5 {[%clk 0:02:00.7]}
26... Rc2 {[%clk 0:03:17.1]} 27. Re2 {[%clk 0:01:52.3]} 27... Rxe2 {[%clk
0:03:09.9]} 28. Qxe2 {[%clk 0:01:48.2]} 28... Qxb3 {[%clk 0:03:08.8]} 29. Qd3
{[%clk 0:01:07.9]} 29... Qxd3 {[%clk 0:03:03.8]} 30. Rxd3 {[%clk 0:01:07.8]}
30... Rc6 {[%clk 0:02:56.3]} 31. Rd2 {[%clk 0:01:03.8]} 31... Rc4 {[%clk
0:02:51.9]} 32. b3 {[%clk 0:00:57.7]} 32... Rb4 {[%clk 0:02:48.6]} 33. Rd3
{[%clk 0:00:55.3]} 33... b6 {[%clk 0:02:44.2]} 34. f3 {[%clk 0:00:47]} 34...
Bc5+ {[%clk 0:02:42.8]} 35. Kf1 {[%clk 0:00:41.3]} 35... Kg7 {[%clk 0:02:39.9]}
36. Ke2 {[%clk 0:00:39.4]} 36... Kf6 {[%clk 0:02:38.8]} 37. Kd2 {[%clk
0:00:17.7]} 37... Be3+ {[%clk 0:02:36.3]} 38. Kc2 {[%clk 0:00:16.6]} 38... Ke5
{[%clk 0:02:34.2]} 39. Kc3 {[%clk 0:00:15.2]} 39... g5 {[%clk 0:02:30.6]} 40. g3
{[%clk 0:00:12.6]} 40... h5 {[%clk 0:02:25.5]} 41. gxf4+ {[%clk 0:00:10.9]}
41... gxf4 {[%clk 0:02:25.4]} 42. h4 {[%clk 0:00:09.5]} 42... Ke6 {[%clk
0:02:19.5]} 43. Nc7+ {[%clk 0:00:06.3]} 43... Ke5 {[%clk 0:02:18.1]} 44. Nb5
{[%clk 0:00:05]} 44... Rxb3+ {[%clk 0:02:11.1]} 45. Kxb3 {[%clk 0:00:02.4]}
45... Bc5 {[%clk 0:02:11]} 46. Kc3 {[%clk 0:00:01]} 46... Ke6 {[%clk 0:02:10.9]}
0-1

[Event "Live Chess"]
[Site "Chess.com"]
[Date "2023.05.20"]
[Round "-"]
[White "Doge_Dandolo"]
[Black "Ed_Knox"]
[Result "1-0"]
[WhiteElo "2039"]
[BlackElo "1487"]
[TimeControl "300"]
[EndTime "14:37:53 PDT"]
[Termination "Doge_Dandolo won by resignation"]

1. Nf3 {[%clk 0:04:59.4]} 1... g6 {[%clk 0:04:49.4]} 2. c4 {[%clk 0:04:56.6]}
2... c5 {[%clk 0:04:46.6]} 3. g3 {[%clk 0:04:54.7]} 3... Nc6 {[%clk 0:04:44.8]}
4. Bg2 {[%clk 0:04:53.6]} 4... Bg7 {[%clk 0:04:41.6]} 5. O-O {[%clk 0:04:52.4]}
5... d6 {[%clk 0:04:31.8]} 6. Nc3 {[%clk 0:04:48]} 6... e5 {[%clk 0:04:29.2]} 7.
d3 {[%clk 0:04:46.3]} 7... Nge7 {[%clk 0:04:27.2]} 8. Bg5 {[%clk 0:04:41.3]}
8... O-O {[%clk 0:04:20.9]} 9. Ne1 {[%clk 0:04:29.3]} 9... Qc7 {[%clk
0:03:49.2]} 10. Nc2 {[%clk 0:04:24.7]} 10... b6 {[%clk 0:03:44]} 11. Bxe7 {[%clk
0:04:21.6]} 11... Nxe7 {[%clk 0:03:08]} 12. Bxa8 {[%clk 0:04:18.9]} 12... Bh3
{[%clk 0:03:06.2]} 13. Bg2 {[%clk 0:04:17.4]} 13... Qd7 {[%clk 0:03:04.2]} 14.
Ne3 {[%clk 0:04:15.1]} 14... Bh6 {[%clk 0:02:45.2]} 15. Ned5 {[%clk 0:04:12.4]}
15... Bxg2 {[%clk 0:02:40]} 16. Nf6+ {[%clk 0:04:07.1]} 1-0